[Event "Silver Lake Festival 2022"]
[Site "Veliko Gradiste"]
[Date "2022.06.24"]
[Round "7.5"]
[White "Petrovic, Dragan R"]
[Black "Damljanovic, Branko"]
[Result "0-1"]
[ECO "B90"]
[WhiteElo "2143"]
[BlackElo "2469"]
[Annotator "TA"]
[PlyCount "119"]
[EventDate "2022.06.16"]
[EventType "swiss"]
[EventCountry "SRB"]
[SourceTitle "playchess.com"]
[Source "ChessBase"]
[SourceQuality "1"]
[TimeControl "5400+30"]

{[%evp 22,119,64,59,98,57,99,0,0,0,0,4,0,0,23,35,37,-1,10,13,20,19,33,-69,-72,-68,-61,-72,-53,-61,-19,-79,-101,-109,-11,-216,-195,-237,-241,-214,-241,-236,-198,-162,-162,-144,-127,-212,-105,-133,-93,-125,-76,-76,-71,-122,-88,-94,0,-218,-204,-213,-59,-477,-175,-645,-624,-656,-655,-585,-554,-492,-446,-654,-615,-316,-316,-799,-531,-714,-722,-809,-772,-5800,-5593,-4710,-900,-5365,-871,-29969,-29972,-29974,-29977,-29977,-29978,-29979,-29980,-29978,-29977,-29982]} 1. e4 {[%emt 0:09:25]} c5 {[%emt 0:00:09]} 2. Nf3 {[%emt 0:00:11]} d6 {[%emt 0:00:06]} 3. d4 {[%emt 0:00:18]} cxd4 {[%emt 0:00:03]} 4. Nxd4 {[%emt 0:00:06]} Nf6 {[%emt 0:00:08]} 5. Nc3 {[%emt 0:00:05]} a6 {[%emt 0:03:32]} 6. f3 {[%emt 0:02:32]} Nc6 {[%emt 0:01:48]} 7. Be3 {[%emt 0:02:23]} e5 {[%emt 0:00:08]} 8. Nb3 {[%emt 0:01:10]} Be6 {[%emt 0:00:03]} 9. Qd2 {[%emt 0:01:30]} Be7 {[%emt 0:04:57]} 10. O-O-O {[%emt 0:00:44]} a5 {[%emt 0:02:09]} 11. Bb5 {[%emt 0:04:51]} O-O {[%emt 0:08:34]} 12. Kb1 {[%emt 0:03:59]} Na7 {[%emt 0:04:06] B90: Sicilian Najdorf: Unusual White 6th moves, 6 Be3 Ng4 and 6 Be3 e5.} 13. Be2 {[%emt 0:01:50]} Nc8 {[%emt 0:01:37] [#]} 14. Nd5 $146 {[%emt 0:04:09]} (14. a4 $16) ({Predecessor:} 14. Qe1 a4 15. Nc5 a3 16. b3 Qc7 17. Nxe6 fxe6 18. Bc4 d5 19. exd5 Nd6 20. Nb5 Nxb5 21. Bxb5 exd5 {0-1 (42) Milos,G (2565)-Saldano Dayer,H (2320) Buenos Aires 1996}) 14... Nxd5 $11 {[%emt 0:05:04] The position is equal.} 15. exd5 {[%emt 0:00:23]} Bd7 {[%emt 0:00:07]} 16. c4 {[%emt 0:03:50]} a4 {[%emt 0:01:35]} 17. Na1 {[%emt 0:02:47]} f5 {[%emt 0:07:06][%cal Ob7b5]} (17... b5 $5) 18. Nc2 {[%emt 0:01:40]} Qe8 {[%emt 0:01:58]} 19. Rhg1 {[%emt 0:05:34]} Bd8 {[%emt 0:04:07]} (19... f4 $5 20. Bf2 b5 $11) 20. Na3 {[%emt 0:05:02]} Ba5 {[%emt 0:10:52]} 21. Qc2 {[%emt 0:07:26]} Kh8 {[%emt 0:08:00]} 22. Nb5 {[%emt 0:09:25]} (22. g4 $14) 22... Bxb5 $15 {[%emt 0:02:15]} 23. cxb5 {[%emt 0:00:10]} a3 {[%emt 0:01:33]} 24. b3 {[%emt 0:04:01]} Rf7 {[%emt 0:04:25]} 25. g4 {[%emt 0:03:18]} f4 {[%emt 0:13:48]} 26. Bf2 {[%emt 0:01:08]} (26. Bc1 $1 $11 {remains equal.}) 26... e4 $17 {[%emt 0:01:12]} 27. fxe4 {[%emt 0:03:36]} (27. Qxe4 $2 Re7 28. Qxf4 Rxe2 $19) 27... Bb6 {[%emt 0:00:10]} (27... Rc7 $1 $17 {[%cal Rc7c2]} 28. Bc4 Nb6 29. Bxb6 Bxb6) 28. Bd4 $2 {[%emt 0:04:42]} (28. Rgf1 $1 $11) 28... f3 $19 {[%emt 0:01:30]} 29. Bc4 {[%emt 0:02:48] [#]} Bxd4 {[%emt 0:00:32]} 30. Rxd4 {[%emt 0:00:06]} Nb6 {[%emt 0:00:17]} 31. Qf2 {[%emt 0:02:18]} Nd7 {[%emt 0:01:21][%mdl 1024] Black has strong compensation.} 32. h3 {[%emt 0:02:35]} Ne5 {[%emt 0:00:16]} 33. Rc1 {[%emt 0:01:03]} Rc8 {[%emt 0:01:36]} 34. b6 {[%emt 0:01:25]} (34. Bf1 $17) 34... Qd8 {[%emt 0:06:19]} (34... Kg8 $19 {is more deadly.} 35. Bf1 Rxc1+ 36. Kxc1 Qe7) 35. Rdd1 $17 {[%emt 0:02:32]} h5 {[%emt 0:02:37]} 36. gxh5 {[%emt 0:01:57]} Qg5 {[%emt 0:00:47]} (36... Nxc4 $142 37. bxc4 (37. Rxc4 Rxc4 38. bxc4 Qf6 $17) 37... Qg5) 37. Bf1 {[%emt 0:02:52]} Rcf8 {[%emt 0:00:12] 0x0.001e686e8550dp-1022s more active pieces.} 38. Rc7 {[%emt 0:01:35]} ({White should try} 38. Rd4) 38... Qxh5 {[%emt 0:00:04]} 39. Rdc1 {[%emt 0:00:43]} Qg6 {[%emt 0:00:05]} (39... Kg8 $17) 40. Qh4+ $2 {[%emt 0:00:23] [#]} (40. Rxf7 $1 $11 {and White stays safe.} Rxf7 41. Rc8+ Kh7 42. Qh4+ Qh6 43. Qxh6+ (43. Qd8 $2 Qf4 $19) 43... Kxh6 44. Kc2) 40... Kg8 $1 $19 {[%emt 0:01:28]} 41. Rxf7 {[%emt 0:00:40]} Nxf7 {[%emt 0:00:01]} (41... Kxf7 $19 42. Rc7+ Kg8) 42. Qe7 $2 {[%emt 0:01:09][%mdl 8192]} (42. Qg4 $1 $15 Qf6 43. Rc2) 42... Ng5 $2 {[%emt 0:00:25]} (42... Ne5 43. Qe6+ Kh7 44. Qxg6+ Kxg6 45. Rc7 $11) (42... Qg3 {( -> ...Qf2)} 43. Qc7 Ng5) 43. h4 $2 {[%emt 0:01:18]} (43. Bd3 Nf7 44. Bf1 (44. Qxb7 $2 Ne5 $19)) 43... Nxe4 {[%emt 0:01:51]} 44. Qe6+ {[%emt 0:01:40]} Qxe6 {[%emt 0:00:37]} 45. dxe6 {[%emt 0:00:05][%mdl 4096] Endgame KRB-KRN} Nd2+ {[%emt 0:00:04]} 46. Kc2 {[%emt 0:00:17]} Nxf1 {[%emt 0:00:02]} ({Not} 46... Ne4 47. Bc4 Rc8 48. e7+ (48. Kd3 Nf6 $16) 48... Kh7 49. Kd3 $16) 47. Rxf1 {[%emt 0:02:19] KR-KR} (47. e7 $142 Ng3 48. exf8=N (48. exf8=R+ $2 Kxf8 49. b4 f2 $19) 48... Kxf8 49. b4) 47... Rf6 48. Kc3 {[%emt 0:00:00]} Kf8 {[%emt 0:00:19]} 49. Kb4 $2 {[%emt 0:00:00]} (49. Kd2 Ke7 50. Ke3) 49... Ke7 {[%emt 0:00:01]} 50. Kxa3 {[%emt 0:00:00]} Kxe6 {[%emt 0:00:13]} 51. Kb2 {[%emt 0:00:10]} Ke5 {[%emt 0:00:10]} 52. Kc3 {[%emt 0:00:30]} Kf4 {[%emt 0:00:35]} 53. a4 {[%emt 0:00:31]} Kg3 {[%emt 0:00:59]} 54. a5 {[%emt 0:00:20]} f2 {[%emt 0:00:38]} (54... Kg2 $142 55. Rb1 f2) 55. b4 {[%emt 0:00:36]} Kg2 {[%emt 0:00:05] Black mates.} 56. Ra1 {[%emt 0:00:51]} f1=Q {[%emt 0:01:08]} 57. Rxf1 {[%emt 0:00:06]} Rxf1 {[%emt 0:00:14]} 58. b5 {[%emt 0:00:14]} Rb1 {[%emt 0:00:16]} 59. Kc4 {[%emt 0:00:26]} g6 {[%emt 0:00:21]} 60. Kd4 {[%emt 0:02:46] Weighted Error Value: White=0.89/Black=0.32} 0-1

[Event "Silver Lake Festival 2022"]
[Site "Veliko Gradiste"]
[Date "2022.06.24"]
[Round "7.6"]
[White "Radovanovic, Nikola"]
[Black "Anuj Shrivatri"]
[Result "1/2-1/2"]
[ECO "D00"]
[WhiteElo "2423"]
[BlackElo "2356"]
[Annotator "TA"]
[PlyCount "43"]
[EventDate "2022.06.16"]
[EventType "swiss"]
[EventCountry "SRB"]
[SourceTitle "playchess.com"]
[Source "ChessBase"]
[SourceQuality "1"]
[TimeControl "5400+30"]

{[%evp 9,29,0,0,-1,0,0,0,0,0,0,0,0,0,0,0,0,0,0,0,0,5,0]} 1. d4 {[%emt 0:01:35]} Nf6 {[%emt 0:00:09]} 2. Nc3 {[%emt 0:00:06]} d5 {[%emt 0:00:08]} 3. Bf4 {[%emt 0:00:08]} c5 {[%emt 0:01:04]} 4. e4 {[%emt 0:00:11]} Nxe4 {[%emt 0:00:15]} 5. Nxe4 {[%emt 0:00:08]} dxe4 {[%emt 0:00:04] The position is equal.} 6. dxc5 {[%emt 0:00:08] D00: 1 d4 d5: Unusual lines.} Qa5+ {[%emt 0:00:05]} 7. c3 {[%emt 0:00:15] b4 is the strong threat.} Qxc5 {[%emt 0:00:06]} 8. Qa4+ {[%emt 0:00:12]} Nc6 {[%emt 0:00:06]} 9. Qxe4 {[%emt 0:00:06]} g6 {[%emt 0:01:20]} 10. Nf3 {[%emt 0:01:03]} Bg7 {[%emt 0:11:07][%cal Og7c3] [#] aiming for ...Bxc3+!} 11. Qe3 {[%emt 0:00:35]} Qxe3+ {[%emt 0:02:19]} 12. Bxe3 {[%emt 0:00:06]} O-O {[%emt 0:01:06]} 13. Be2 {[%emt 0:00:24]} b6 {[%emt 0:09:25]} 14. O-O {[%emt 0:01:55]} Bb7 {[%emt 0:01:32]} 15. Rfd1 {[%emt 0:01:46] [#] A balanced but interesting game.  Weighted Error Value: White=0.00 (flawless) /Black=0.01 (flawless)} {Predecessor:} Rfd8 $146 16. Nd2 Rd7 17. Nb3 Rxd1+ 18. Rxd1 Rd8 19. Rxd8+ Nxd8 20. a4 Bd5 21. Nd4 Bxd4 22. Bxd4 {½-½ (46) Niemann,H (2642)-Hakobyan,A (2601) Chess.com INT 2022} 1/2-1/2

[Event "Silver Lake Festival 2022"]
[Site "Veliko Gradiste"]
[Date "2022.06.24"]
[Round "7.7"]
[White "Zanan, Evgeny"]
[Black "Lever, Erwan"]
[Result "1-0"]
[ECO "B45"]
[WhiteElo "2534"]
[BlackElo "2209"]
[Annotator "RC"]
[PlyCount "33"]
[EventDate "2022.06.16"]
[EventType "swiss"]
[EventCountry "SRB"]
[SourceTitle "playchess.com"]
[Source "ChessBase"]
[SourceQuality "1"]
[TimeControl "5400+30"]

1. e4 {[%emt 0:07:03]} c5 {[%emt 0:00:05]} 2. Nf3 {[%emt 0:00:04]} e6 {[%emt 0:00:05]} 3. d4 {[%emt 0:00:09]} cxd4 {[%emt 0:00:05]} 4. Nxd4 {[%emt 0:00:03]} Nf6 {[%emt 0:00:09]} 5. Nc3 {[%emt 0:00:48]} Nc6 {[%emt 0:00:06]} 6. Nxc6 {[%emt 0:00:15]} bxc6 {[%emt 0:00:05]} 7. Bd3 {[%emt 0:00:03]} d5 {[%emt 0:02:30]} 8. O-O {[%emt 0:00:28]} g6 {[%emt 0:08:38]} 9. Bg5 {[%emt 0:01:36]} h6 {[%emt 0:00:24]} 10. Bxf6 {[%emt 0:23:49]} Qxf6 {[%emt 0:00:07]} 11. exd5 {[%emt 0:00:05]} cxd5 {[%emt 0:16:15]} 12. Nxd5 {[%emt 0:03:47]} exd5 {[%emt 0:00:07]} 13. Bb5+ {[%emt 0:00:02]} Kd8 {[%emt 0:01:24]} 14. Qxd5+ {[%emt 0:00:08]} Bd6 {[%emt 0:00:21]} 15. Rad1 {[%emt 0:01:31]} Rb8 {[%emt 0:00:57]} 16. c4 {[%emt 0:08:19]} a6 {[%emt 0:36:07]} 17. Qc5 {[%emt 0:50:50]} 1-0

[Event "Silver Lake Festival 2022"]
[Site "Veliko Gradiste"]
[Date "2022.06.24"]
[Round "7.8"]
[White "Lazic, Emanuel"]
[Black "Markovic, Zoran S"]
[Result "0-1"]
[ECO "B31"]
[WhiteElo "2185"]
[BlackElo "2313"]
[Annotator "TA"]
[PlyCount "59"]
[EventDate "2022.06.16"]
[EventType "swiss"]
[EventCountry "SRB"]
[SourceTitle "playchess.com"]
[Source "ChessBase"]
[SourceQuality "1"]
[TimeControl "5400+30"]

{[%evp 17,59,0,0,0,0,0,0,0,14,6,0,4,8,0,16,6,0,3,24,25,75,0,0,-34,0,-6,0,0,-2,0,-4,0,-5,-78,-39,-44,-37,-213,-204,-210,-210,-208,-198,-1056]} 1. e4 {[%emt 0:00:40]} c5 {[%emt 0:00:08]} 2. Nf3 {[%emt 0:00:08]} Nc6 {[%emt 0:00:10]} 3. Bb5 {[%emt 0:00:09]} g6 {[%emt 0:00:20]} 4. Bxc6 {[%emt 0:00:10]} bxc6 {[%emt 0:00:10]} 5. O-O {[%emt 0:00:09]} Bg7 {[%emt 0:00:22]} 6. Re1 {[%emt 0:00:16]} Nh6 {[%emt 0:00:59]} 7. c3 {[%emt 0:00:40]} O-O {[%emt 0:01:05]} 8. d4 {[%emt 0:00:54] 8.h3 deserves study.} cxd4 {[%emt 0:00:23]} 9. cxd4 {[%emt 0:00:11]} d5 {[%emt 0:00:39]} 10. e5 {[%emt 0:00:36] B31: Sicilian: 2...Nc6 3 Bb5 g6.} f6 {[%emt 0:00:32]} 11. exf6 {[%emt 0:01:00]} exf6 {[%emt 0:00:25]} 12. Nbd2 {[%emt 0:01:20] The position is equal.} Nf5 {[%emt 0:13:46]} 13. Nb3 {[%emt 0:03:05]} Re8 {[%emt 0:03:21]} 14. Bd2 {[%emt 0:04:03]} Rxe1+ {[%emt 0:02:40]} 15. Qxe1 {[%emt 0:04:27]} Nd6 {[%emt 0:11:12] [#]} 16. Ba5 $146 {[%emt 0:15:54]} ({Predecessor:} 16. Bb4 Qc7 17. Rc1 Bg4 18. Qc3 Rc8 19. Nfd2 h5 20. h3 {½-½ (20) Novikovas,V (2530)-Dunlop,G (2535) ICCF email 2018}) 16... Qd7 {[%emt 0:01:04]} 17. Bb4 {[%emt 0:03:18]} Ne4 {[%emt 0:10:11]} 18. Nfd2 {[%emt 0:04:57]} f5 {[%emt 0:04:37]} (18... Nd6 $11 {remains equal.}) 19. Nxe4 {[%emt 0:10:48]} (19. Rc1 $16) 19... dxe4 $11 {[%emt 0:03:13]} 20. Qc3 {[%emt 0:06:35]} Qf7 {[%emt 0:08:24]} 21. Qxc6 {[%emt 0:04:54]} Bb7 {[%emt 0:00:24]} 22. Qc2 {[%emt 0:00:44]} Bd5 23. Bc3 {[%emt 0:00:51]} f4 {[%emt 0:05:28][%cal Bf5f4,Bf4f3][%mdl 32]} 24. Nc5 {[%emt 0:07:15]} Re8 {[%emt 0:06:30]} 25. Qa4 {[%emt 0:07:08]} (25. Re1 $11) 25... f3 $36 {[%emt 0:09:55][%mdl 3072] Strongly threatening ...e3. Black has strong compensation. Black is pushing.} (25... Re7 $5 {[%cal Rf4f3]} 26. Qb4 f3 27. gxf3 exf3 $15) 26. Qd7 $1 {[%emt 0:02:51]} Re7 {[%emt 0:01:16]} 27. Qd8+ {[%emt 0:00:15] [#] This move loses the game for White.} (27. Qc8+ $1 $15 Bf8 28. Qh3 (28. gxf3 $2 Qxf3 29. Qd8 e3 $19)) 27... Bf8 $1 $19 {[%emt 0:04:11] A strong pair of Bishops. Black is clearly better.} ({Weaker is} 27... Re8 28. Qd7 $15) 28. Be1 {[%emt 0:06:01]} Qf5 {[%emt 0:01:30][%cal Of5g4] Inhibits Qc8. ( -> ...Qg4!)} 29. Bd2 {[%emt 0:01:43] [#]} e3 $1 {[%emt 0:01:58]} 30. Be1 $2 {[%emt 0:00:30] Weighted Error Value: White=0.23 (precise) /Black=0.07 (flawless)} (30. Bxe3 Rxe3 31. Nd7 (31. fxe3 $2 {is a self mate.} f2+ 32. Kh1 f1=Q+ 33. Rxf1 Qxf1#)) 0-1

[Event "Silver Lake Festival 2022"]
[Site "Veliko Gradiste"]
[Date "2022.06.24"]
[Round "7.9"]
[White "Govedarica, Radovan"]
[Black "Mamedov, Edgar"]
[Result "1/2-1/2"]
[ECO "C10"]
[WhiteElo "2289"]
[BlackElo "2004"]
[Annotator "TA"]
[PlyCount "133"]
[EventDate "2022.06.16"]
[EventType "swiss"]
[EventCountry "SRB"]
[SourceTitle "playchess.com"]
[Source "ChessBase"]
[SourceQuality "1"]
[TimeControl "5400+30"]

{[%evp 9,133,27,29,1,31,11,10,12,22,0,0,-13,-26,-14,-25,-38,0,-21,0,-12,-16,-16,0,-12,-6,-7,-6,-33,-12,-47,-22,-67,-52,-71,-69,-60,-52,-54,-57,-58,-44,-40,-47,-206,-215,-212,-212,-203,-189,-181,-120,-168,-158,-277,-272,-287,-290,-443,-279,-363,-305,-377,-365,-327,-308,-368,-368,-352,-286,-279,-273,-331,-254,-245,-245,-386,-376,-883,-800,-4586,-3167,-5495,-5495,-5495,-5495,-5495,-5495,-5488,-5488,-5488,-5488,-5481,-5481,-5481,0,0,0,0,0,0,0,0,0,0,0,0,0,0,0,0,0,0,0,0,0,0,0,0,0,0,0,0,0,0,0,0]} 1. e4 {[%emt 0:00:00]} e6 {[%emt 0:00:47]} 2. d4 {[%emt 0:00:10]} d5 {[%emt 0:00:08]} 3. Nc3 {[%emt 0:00:03]} dxe4 {[%emt 0:00:22]} 4. Nxe4 {[%emt 0:00:07]} Nd7 {[%emt 0:00:22]} 5. g3 {[%emt 0:01:39]} Ngf6 {[%emt 0:01:27]} 6. Bg5 {[%emt 0:00:06] C10: French with 3 Nc3: Unusual Black 3rd moves and 3...dxe4.} h6 {[%emt 0:03:36]} (6... Be7 $5 {[%cal Rf6e4]} 7. Nxf6+ Nxf6 $11) 7. Bxf6 {[%emt 0:01:06]} Nxf6 {[%emt 0:00:41]} 8. Nxf6+ {[%emt 0:00:30]} Qxf6 {[%emt 0:01:00]} 9. Bg2 {[%emt 0:00:02] [#]} c5 $146 {[%emt 0:06:53]} ({Predecessor:} 9... Bd6 10. Ne2 O-O 11. O-O Rd8 12. Nc3 Bf8 13. Ne2 c5 14. c3 cxd4 15. cxd4 Rb8 {0-1 (55) Renn,V (1936)-Gunkel,C (2029) Nordrheinwestfalen 2013}) 10. Qd3 {[%emt 0:04:58][%cal Og2b7]} Qxd4 {[%emt 0:04:44]} 11. Qxd4 {[%emt 0:03:07]} cxd4 {[%emt 0:00:11]} 12. O-O-O {[%emt 0:00:02]} g5 {[%emt 0:21:26]} 13. Rxd4 {[%emt 0:00:21]} Bg7 {[%emt 0:02:00]} 14. Rd2 {[%emt 0:01:20]} Bd7 {[%emt 0:08:44]} 15. Ne2 {[%emt 0:01:12]} Ke7 {[%emt 0:03:35]} 16. Rhd1 {[%emt 0:01:06]} ({Wrong is} 16. Bxb7 $2 Rab8 17. Be4 f5 $19) 16... Rhd8 {[%emt 0:00:50]} 17. Nd4 {[%emt 0:05:05]} (17. Bxb7 $2 Rab8 18. Bf3 Bxb2+ 19. Kb1 Bc3+ 20. Kc1 Bxd2+ 21. Rxd2 Rbc8 $19) 17... Rab8 {[%emt 0:04:53][%cal Ba8b8,Bb8c8,Bc8c7][%mdl 32]} 18. h3 {[%emt 0:04:41]} h5 {[%emt 0:06:14]} 19. Rd3 {[%emt 0:05:04]} g4 {[%emt 0:10:54]} (19... e5 $5 {[%cal Re5d4]} 20. Re1 g4 21. hxg4 hxg4 $15) 20. h4 {[%emt 0:04:04]} f5 {[%emt 0:05:15][%cal Bf7f5,Bf5f4][%mdl 32]} 21. Nb3 {[%emt 0:06:27]} b6 {[%emt 0:03:09] Inhibits Nc5.} 22. c3 {[%emt 0:04:25]} Rbc8 {[%emt 0:05:56]} 23. Bb7 {[%emt 0:00:36]} Rc7 {[%emt 0:01:02]} 24. Bg2 {[%emt 0:00:55]} f4 {[%emt 0:06:26]} 25. Be4 {[%emt 0:00:23]} ({Much worse is} 25. gxf4 Rf8 26. R3d2 Rxf4 $19) 25... Rf8 {[%emt 0:00:54]} 26. Bg6 $2 {[%emt 0:00:38]} ({Better is} 26. Re1 $15) 26... Bb5 $19 {[%emt 0:00:42]} 27. Bxh5 {[%emt 0:02:04]} Bxd3 {[%emt 0:00:05]} 28. Rxd3 {[%emt 0:00:02]} fxg3 {[%emt 0:00:45]} 29. fxg3 {[%emt 0:00:01]} Rf3 {[%emt 0:00:34]} (29... Bh6+ $19 30. Kb1 Rc4) 30. Rxf3 {[%emt 0:00:23]} (30. Kc2 $17) 30... gxf3 {[%emt 0:00:07]} 31. Bxf3 {[%emt 0:00:08] [#]} (31. Kd2 $17 {might work better.}) 31... Bxc3 $1 $17 {[%emt 0:00:20][%mdl 4608] Endgame KRB-KBN} 32. Kd1 {[%emt 0:00:39]} (32. h5 Be1+) 32... Bxb2 {[%emt 0:00:31]} 33. g4 {[%emt 0:00:28]} (33. Be2 {was worth a try.}) 33... Rc3 {[%emt 0:00:43]} 34. Ke2 {[%emt 0:00:01]} Rc2+ {[%emt 0:00:36]} 35. Ke3 {[%emt 0:00:25]} Rh2 {[%emt 0:00:42]} 36. h5 {[%emt 0:00:01]} Kf6 {[%emt 0:00:40]} 37. a4 {[%emt 0:00:05]} a5 {[%emt 0:00:49]} 38. Kd3 {[%emt 0:00:49]} Be5 {[%emt 0:00:39]} 39. Nd2 {[%emt 0:00:05]} Bf4 {[%emt 0:00:26]} 40. Ne4+ {[%emt 0:02:38]} Kg7 {[%emt 0:00:06]} 41. g5 {[%emt 0:01:22]} b5 {[%emt 0:00:45]} 42. axb5 {[%emt 0:00:23]} (42. Nc5 $142 Rd2+ 43. Kc3 b4+ 44. Kc4 Bxg5 45. Nxe6+ Kh6 46. Nd4) 42... a4 $19 {[%emt 0:00:09] Threatens to win with ...a3.} ({Not} 42... Rh3 43. Nc5 $17) 43. Nc5 $2 {[%emt 0:01:39]} (43. Be2) 43... a3 {[%emt 0:00:21]} 44. Nxe6+ {[%emt 0:00:02]} Kh8 {[%emt 0:00:18]} 45. Bd5 {[%emt 0:00:13]} Rd2+ {[%emt 0:00:18]} 46. Ke4 {[%emt 0:00:26] [#]} Rxd5 $1 {[%emt 0:00:19][%mdl 576] Promotion} 47. Kxd5 {[%emt 0:00:01]} a2 {[%emt 0:00:34]} 48. Nxf4 {[%emt 0:00:06]} a1=Q {[%emt 0:00:06]} 49. Ne6 {[%emt 0:00:20]} Qh1+ {[%emt 0:00:32]} 50. Kd6 {[%emt 0:00:36]} Qxh5 {[%emt 0:01:13]} 51. b6 {[%emt 0:00:14]} Qf7 $2 {[%emt 0:00:49]} (51... Qh2+ $19 52. Kc6 Qg2+ 53. Kd6 Qb7) 52. Nc5 $11 {[%emt 0:00:31] The position is equal.} Qf8+ {[%emt 0:00:34]} 53. Kc6 {[%emt 0:00:09]} Qf3+ {[%emt 0:00:39]} 54. Kc7 {[%emt 0:01:33]} Qd5 {[%emt 0:00:30]} 55. Nd7 {[%emt 0:00:02]} Qc4+ {[%emt 0:00:24]} 56. Kd6 {[%emt 0:00:26]} Qc8 {[%emt 0:01:02] White must now prevent ...Qb7.} 57. Nc5 {[%emt 0:00:16] Inhibits Qb7.} Qd8+ {[%emt 0:00:24]} 58. Kc6 {[%emt 0:00:02]} Qxg5 {[%emt 0:00:21]} 59. b7 {[%emt 0:00:11]} Qf6+ {[%emt 0:00:28]} 60. Kc7 {[%emt 0:00:35]} Qe5+ {[%emt 0:00:14]} 61. Kc6 $1 {[%emt 0:00:05]} Kg7 {[%emt 0:00:43]} 62. Nd7 {[%emt 0:00:11]} Qe4+ {[%emt 0:00:24]} 63. Kc7 {[%emt 0:00:19]} Qc4+ {[%emt 0:00:12]} 64. Kd8 {[%emt 0:00:12]} Qh4+ {[%emt 0:00:34]} 65. Kc8 {[%emt 0:00:19]} Qh8+ {[%emt 0:00:49]} 66. Kc7 {[%emt 0:00:10]} Qh2+ {[%emt 0:00:10]} 67. Kc8 {[%emt 0:00:13] White happily takes the draw.  Weighted Error Value: White=0.52/Black=0.18 (very precise)} 1/2-1/2

[Event "Silver Lake Festival 2022"]
[Site "Veliko Gradiste"]
[Date "2022.06.24"]
[Round "7.10"]
[White "Furman, Boris"]
[Black "Ojas Kulkarni"]
[Result "1/2-1/2"]
[ECO "D80"]
[WhiteElo "2121"]
[BlackElo "2235"]
[Annotator "NA RC"]
[PlyCount "30"]
[EventDate "2022.06.16"]
[EventType "swiss"]
[EventCountry "SRB"]
[SourceTitle "playchess.com"]
[Source "ChessBase"]
[SourceQuality "1"]
[TimeControl "5400+30"]

1. d4 {[%emt 0:00:07]} Nf6 {[%emt 0:00:06]} 2. c4 {[%emt 0:00:06]} g6 {[%emt 0:00:05]} 3. Nc3 {[%emt 0:00:07]} d5 {[%emt 0:00:06]} 4. Bg5 {[%emt 0:00:14]} Ne4 {[%emt 0:00:09]} 5. Bh4 {[%emt 0:00:06]} Nxc3 {[%emt 0:00:07]} 6. bxc3 {[%emt 0:00:06]} dxc4 {[%emt 0:00:08]} 7. Qa4+ {[%emt 0:00:10]} c6 {[%emt 0:03:16]} 8. Qxc4 {[%emt 0:00:20]} Qa5 {[%emt 0:00:05]} 9. e3 {[%emt 0:03:28]} Be6 {[%emt 0:00:50]} 10. Qb4 {[%emt 0:00:15]} Qxb4 {[%emt 0:00:23]} 11. cxb4 {[%emt 0:00:08]} Bg7 {[%emt 0:00:49]} 12. Nf3 {[%emt 0:01:40]} Bd5 {[%emt 0:04:28]} 13. Be2 {[%emt 0:05:10]} Nd7 {[%emt 0:07:58]} 14. O-O {[%emt 0:06:40]} e5 {[%emt 0:03:51]} 15. Rfd1 {[%emt 0:00:56]} O-O {[%emt 0:04:36]} 1/2-1/2